lending/lending_fUSD_20251021
["ID","MTS","AMOUNT","RATE_DAILY","PERIOD"]
[391977308,1761048653318,-396.59477054,0.00034388,2]
[391977309,1761048653328,-137598.35821897,0.00034388,2]
[391977310,1761048653337,-86449.21614302,0.00034388,2]
[391977311,1761048653347,-489.35566178,0.00034388,2]
[391977312,1761048653357,-888.94917845,0.00034388,2]
[391977313,1761048653367,-467.23283051,0.00034388,2]
[391977314,1761048653376,-150.0,0.00034388,2]
[391977315,1761048653386,-160.0,0.00034388,2]
[391977316,1761048653396,-598.76483212,0.00034388,2]
[391977317,1761048653405,-12802.52500232,0.00034388,2]
[391977318,1761048653415,-160.25286929,0.00034388,2]
[391977319,1761048653425,-202.34190288,0.00034388,2]
[391977320,1761048653435,-464.54769552,0.00034388,2]
[391977321,1761048653445,-753.32503329,0.00034388,2]
[391977322,1761048653454,-4266.0,0.00034388,2]
[391977323,1761048653464,-848.04947078,0.00034388,2]
[391977324,1761048653473,-184.5667483,0.00034388,2]
[391977325,1761048653485,-3352.96442074,0.00034388,2]
[391977326,1761048653500,-2259.85603384,0.00034388,2]
[391977327,1761048653510,-200.0,0.00034388,2]
[391977328,1761048653520,-200.0,0.00034388,2]
[391977329,1761048653531,-15293.9104483,0.00034392,30]
[391977330,1761048653541,-289.26622063,0.00034392,7]
[391977331,1761048653551,-152.0,0.00034392,7]
[391977332,1761048653560,-1235.0,0.00034392,7]
[391977333,1761048653571,-235.29865209,0.00034392,7]
[391977334,1761048653580,-1288.95121152,0.00034392,7]
[391977335,1761048653590,-1000.0,0.00034395,2]
[391977336,1761048653600,-1425.0,0.00034399,2]
[391977337,1761048653611,-1039.0,0.000344,30]
[391977338,1761048653620,-2005.51708175,0.000344,30]
[391977339,1761048653629,-30612.76748915,0.000344,12]
[391977340,1761048653639,-968.44,0.000344,14]
[391977341,1761048653649,-942.48,0.00034411,120]
[391977342,1761048653659,-485.1,0.00034412,30]
[391977343,1761048653668,-500.0,0.00034415,30]
[391977344,1761048653678,-1425.0,0.00034422,2]
[391977345,1761048653688,-152.714608,0.00034428,30]
[391977346,1761048653698,-174.519063,0.00034428,30]
[391977347,1761048653709,-151.576202,0.00034428,30]
[391977348,1761048653718,-150.273361,0.00034428,30]
[391977349,1761048653728,-1000.0,0.00034443,13]
[391977350,1761048653739,-1000.0,0.00034443,13]
[391977351,1761048653749,-1000.0,0.00034443,13]
[391977352,1761048653758,-1000.0,0.00034443,13]
[391977353,1761048653768,-1000.0,0.00034443,13]
[391977354,1761048653777,-1000.0,0.00034443,13]
[391977355,1761048653787,-1000.0,0.00034443,13]
[391977356,1761048653796,-1000.0,0.00034443,13]
[391977357,1761048653805,-1000.0,0.00034443,13]
[391977358,1761048653815,-1000.0,0.00034443,13]
[391977359,1761048653824,-1000.0,0.00034443,13]
[391977360,1761048653833,-1000.0,0.00034443,13]
[391977361,1761048653843,-1000.0,0.00034443,13]
[391977362,1761048653852,-1142.97409598,0.00034443,13]
[391977363,1761048653862,-248.71531821,0.00034466,36]
[391977364,1761048653872,-257.91778498,0.00034466,37]
[391977365,1761048653881,-267.46074303,0.00034466,38]
[391977366,1761048653891,-174.519063,0.00034467,36]
[391977367,1761048653900,-174.519063,0.00034467,38]
[391977368,1761048653909,-300.0,0.0003447,2]
[391977369,1761048653919,-300.0,0.0003447,2]
[391977370,1761048653929,-300.0,0.0003447,2]
[391977371,1761048653938,-400.0,0.0003447,2]
[391977372,1761048653948,-400.0,0.0003447,2]
[391977373,1761048653957,-400.0,0.0003447,2]
[391977374,1761048653967,-300.0,0.0003447,2]
[391977375,1761048653976,-400.0,0.0003447,2]
[391977376,1761048653985,-239.84119403,0.00034472,30]
[391977377,1761048653996,-302.0,0.00034472,7]
[391977378,1761048654006,-151.0,0.00034472,7]
[391977379,1761048654015,-152.06297962,0.00034472,7]
[391977380,1761048654024,-174.519063,0.00034475,36]
[391977381,1761048654034,-174.519063,0.00034475,38]
[391977382,1761048654044,-1030.48370088,0.00034479,2]
[391977383,1761048654054,-152.714608,0.00034484,36]
[391977384,1761048654064,-152.714608,0.00034484,38]
[391977385,1761048654074,-174.519063,0.00034484,36]
[391977386,1761048654083,-174.519063,0.00034484,38]
[391977387,1761048654093,-151.576202,0.00034484,36]
[391977388,1761048654103,-151.576202,0.00034484,38]
[391977389,1761048654113,-150.273361,0.00034484,36]
[391977390,1761048654123,-150.273361,0.00034484,38]
[391977391,1761048654133,-150.7,0.00034488,30]
[391977392,1761048654144,-332.47757347,0.00034489,120]
[391977393,1761048654153,-152.714608,0.00034492,36]
[391977394,1761048654163,-152.714608,0.00034492,38]
[391977395,1761048654172,-174.519063,0.00034492,36]
[391977396,1761048654182,-174.519063,0.00034492,38]
[391977397,1761048654192,-151.576202,0.00034492,36]
[391977398,1761048654201,-151.576202,0.00034492,38]
[391977399,1761048654210,-152.695199,0.00034492,36]
[391977400,1761048654220,-152.695199,0.00034492,38]
[391977401,1761048654229,-150.273361,0.00034492,36]
[391977402,1761048654239,-150.273361,0.00034492,38]
[391977403,1761048654250,-154.314848,0.00034492,36]
[391977404,1761048654260,-154.314848,0.00034492,38]
[391977405,1761048654270,-1000.0,0.00034494,2]
[391977406,1761048654279,-155.0,0.000345,120]
[391977407,1761048654288,-152.714608,0.000345,36]
[391977408,1761048654298,-152.714608,0.000345,38]
[391977409,1761048654308,-174.519063,0.000345,36]
[391977410,1761048654317,-174.519063,0.000345,38]
[391977411,1761048654326,-151.576202,0.000345,36]
[391977412,1761048654336,-151.576202,0.000345,38]
[391977413,1761048654347,-152.695199,0.000345,36]
[391977414,1761048654356,-152.695199,0.000345,38]
[391977415,1761048654366,-150.273361,0.000345,36]
[391977416,1761048654375,-150.273361,0.000345,38]
[391977417,1761048654385,-154.314848,0.000345,36]
[391977418,1761048654394,-154.314848,0.000345,38]
[391977419,1761048654404,-1205.65619575,0.000345,2]
[391977420,1761048654414,-302.0,0.000345,2]
[391977421,1761048654423,-560.0,0.000345,2]
[391977422,1761048654433,-231.28369723,0.00034501,30]
[391977423,1761048654442,-223.0315306,0.00034507,30]
[391977424,1761048654452,-215.0738,0.00034509,30]
[391977425,1761048654462,-207.4,0.00034515,30]
[391977426,1761048654471,-1000.0,0.00034516,7]
[391977427,1761048654481,-500.0,0.00034516,7]
[391977428,1761048654492,-1002.1107878,0.0003452,120]
[391977429,1761048654504,-152.714608,0.00034552,30]
[391977430,1761048654514,-174.519063,0.00034552,30]
[391977431,1761048654523,-151.576202,0.00034552,30]
[391977432,1761048654533,-152.695199,0.00034552,30]
[391977433,1761048654543,-150.273361,0.00034552,30]
[391977434,1761048654553,-154.314848,0.00034552,30]
[391977435,1761048654562,-328.25024238,0.0003459,2]
[391977436,1761048654572,-6130.23412767,0.000346,2]
[391977437,1761048654582,-200.0,0.00034675,30]
[391977438,1761048654592,-152.714608,0.00034676,30]
[391977439,1761048654728,-174.519063,0.00034676,30]
[391977440,1761048654738,-151.576202,0.00034676,30]
[391977441,1761048654747,-152.695199,0.00034676,30]
[391977442,1761048654756,-150.273361,0.00034676,30]
[391977443,1761048654766,-154.314848,0.00034676,30]
[391977444,1761048654775,-500.0,0.00034689,30]
[391977445,1761048654785,-5282187.88,0.0003469,30]
[391977446,1761048654794,-1477677.57136438,0.0003469,21]
[391977447,1761048655168,-577.36270531,0.0003469,21]
[391977448,1761048655179,-5868.7590974,0.0003469,21]
[391977449,1761048655192,-443.66016305,0.0003469,21]
[391977450,1761048655215,-151.0,0.00023288,7]
[391977451,1761048655226,-3165.13927406,0.0003469,21]
[391977452,1761048655238,-1150.0,0.0003469,21]
[391977453,1761048655641,-198.64070219,0.0001691,2]
[391977454,1761048655652,-151.0,0.0001691,2]
[391977455,1761048655661,-151.0,0.00023288,7]
[391977456,1761048655671,-151.0,0.00023288,7]
[391977457,1761048655680,-6.138694,0.00023288,7]
[391977458,1761048655691,-241.94133,0.00023288,7]
[391977459,1761048655700,-151.0,0.00023288,7]
[391977460,1761048655710,-500.0,0.00023468,2]
[391977461,1761048655721,-151.0,0.00032877,120]
[391977462,1761048655732,-44.40867,0.0003469,21]
[391977463,1761048655759,-3511.60163,0.0003469,21]
[391977464,1761048656740,-249.6840426,0.000149,2]
[391977465,1761048656751,-151.0,0.00015128,2]
[391977466,1761048656760,-195.572152,0.00018247,2]
[391977467,1761048656770,-195.572152,0.00018247,2]
[391977468,1761048656779,-195.572152,0.00018447,2]
[391977469,1761048656789,-195.572152,0.00019,2]
[391977470,1761048656800,-195.572152,0.00020116,7]
[391977471,1761048656810,-151.0,0.00023288,7]
[391977472,1761048656821,-76.68678809,0.00023288,7]
[391977473,1761048657586,-4026.5747899,0.000149,2]
[391977474,1761048657614,-432.51960622,0.000149,2]
[391977476,1761048780806,265.97,0.00013699,2]
[391977477,1761048783491,685247.93,0.00034388,30]
[391977762,1761049722598,1137.98040555,0.0003,120]
[391977885,1761049831837,-168.0,0.00014585,2]
[391977886,1761049831847,-168.0,0.00014608,2]
[391977887,1761049831859,-168.0,0.00014872,2]
[391977888,1761049831868,-168.0,0.00014896,2]
[391977889,1761049831878,-168.0,0.00014915,2]
[391977890,1761049831888,-168.0,0.00015008,2]
[391977891,1761049831897,-168.0,0.00015024,2]
[391977892,1761049831911,-168.0,0.00015282,2]
[391977894,1761049831920,-151.0,0.00015433,2]
[391977895,1761049831930,-151.0,0.00015434,2]
[391977896,1761049831939,-151.0,0.00015436,2]
[391977897,1761049831949,-150.0,0.00015461,2]
[391977898,1761049831958,-150.0,0.00015461,2]
[391977899,1761049831968,-168.0,0.00015652,2]
[391977900,1761049831977,-168.0,0.00015931,2]
[391977902,1761049831988,-168.0,0.00016007,2]
[391977903,1761049831998,-195.0,0.00016043,2]
[391977904,1761049832007,-250.0,0.00016043,2]
[391977905,1761049832016,-5000.00635746,0.000162,5]
[391977906,1761049832027,-902.0,0.0001695,2]
[391977907,1761049832037,-2548.0,0.0001695,2]
[391977908,1761049832047,-3081.0,0.0001745,2]
[391977909,1761049832059,-8057.51372162,0.00017773,2]
[391977910,1761049832071,-1085.7,0.00017773,2]
[391977911,1761049832083,-669.26447539,0.00017773,2]
[391977912,1761049832116,-214.27752448,0.00017773,2]
[391977913,1761049832125,-205.58608268,0.0001995,2]
[391977914,1761049832143,-365.2750005,0.0001995,2]
[391977916,1761049832154,-1977.13891682,0.0001995,2]
[391977917,1761049832164,-2037.63993118,0.0002,2]
[391977919,1761049832174,-265.97,0.00020187,2]
[391977921,1761049832184,-1744.3364704,0.00022752,2]
[391977923,1761049832193,-197.03122241,0.0002295,2]
[391977926,1761049832211,-2350.96877759,0.0002295,2]
[391977928,1761049832220,-500.0,0.00023118,2]
[391977930,1761049832229,-547.23,0.00023243,2]
[391977932,1761049832239,-1675.3502906,0.00023998,2]
[391977934,1761049832248,-1001.0,0.000247,2]
[391977936,1761049832257,-161.94133353,0.00025412,2]
[391977938,1761049832266,-168.4,0.00025718,2]
[391977940,1761049832275,-500.79138186,0.00025938,2]
[391977941,1761049832284,-967.10192164,0.0002595,2]
[391977969,1761049837597,-773.04707836,0.0002595,2]
[391977971,1761049837609,-1001.4543678,0.00026,7]
[391977973,1761049837620,-2532.10855384,0.0002635,2]
[391977974,1761049837818,-2467.89144616,0.0002635,2]
[391977975,1761049837828,-204.58,0.00026617,2]
[391977976,1761049837839,-265.97,0.00026676,2]
[391977977,1761049837849,-3070.41,0.00026793,2]
[391977978,1761049837859,-699.45,0.00027261,2]
[391977979,1761049837869,-912.75,0.00027335,2]
[391977980,1761049837879,-150.0,0.00027397,7]
[391977981,1761049837889,-150.0,0.00027397,7]
[391977982,1761049837899,-187.5,0.00027443,2]
[391977983,1761049837909,-171.27,0.00027467,2]
[391977985,1761049837918,-250.0,0.00027469,7]
[391977987,1761049837928,-181.01,0.00028004,30]
[391977989,1761049837938,-1424.69,0.00028089,18]
[391977990,1761049837947,-495.02,0.00028142,2]
[391977991,1761049837957,-1282.91,0.00028471,2]
[391977992,1761049837966,-187.5,0.00028813,2]
[391977994,1761049837980,-1000.0,0.00028993,2]
[391977996,1761049837989,-250.0,0.00029084,2]
[391977999,1761049837999,-155.0,0.00030452,30]
[391978001,1761049838010,-155.0,0.00030452,30]
[391978003,1761049838019,-155.0,0.00030452,30]
[391978005,1761049838029,-155.0,0.00030452,30]
[391978007,1761049838038,-155.0,0.00030452,30]
[391978009,1761049838048,-155.0,0.00030452,30]
[391978011,1761049838060,-155.0,0.00030452,30]
[391978012,1761049838070,-7.10942114,0.00030452,30]
[391978171,1761049841962,-706.19111216,0.00018455,2]
[391978172,1761049841974,-2737.6985315,0.00018455,2]
[391978185,1761049842879,-1094.55634,0.00018455,2]
[391978186,1761049842933,-3198.141844,0.00018455,2]
[391978187,1761049842990,-1575.79395408,0.00018455,2]
[391978188,1761049842999,-147.89057886,0.00030452,30]
[391978189,1761049843008,-155.0,0.00030452,30]
[391978190,1761049843018,-94.11546706,0.00030452,30]
[391978193,1761049845883,-60.88453294,0.00030452,30]
[391978194,1761049845897,-155.0,0.00030452,30]
[391978195,1761049845915,-155.0,0.00030452,30]
[391978196,1761049845928,-155.0,0.00030452,30]
[391978197,1761049845940,-155.0,0.00030452,30]
[391978198,1761049845954,-444.0,0.00030454,30]
[391978199,1761049845974,-444.0,0.00030454,30]
[391978200,1761049845996,-444.0,0.00030454,30]
[391978201,1761049846027,-444.0,0.00030454,30]
[391978202,1761049846043,-444.0,0.00030454,30]
[391978203,1761049846058,-444.0,0.00030454,30]
[391978204,1761049846075,-444.0,0.00030454,30]
[391978205,1761049846090,-444.0,0.00030454,30]
[391978206,1761049846104,-444.0,0.00030454,30]
[391978207,1761049846119,-444.0,0.00030454,30]
[391978208,1761049846136,-444.0,0.00030454,30]
[391978209,1761049846150,-444.0,0.00030454,30]
[391978210,1761049846167,-444.0,0.00030454,30]
[391978211,1761049846181,-444.0,0.00030454,30]
[391978212,1761049846195,-166.0,0.0003046,30]
[391978213,1761049846209,-166.0,0.0003046,30]
[391978214,1761049846223,-166.0,0.0003046,30]
[391978215,1761049846236,-166.0,0.0003046,30]
[391978216,1761049846249,-23.54258174,0.0003046,30]
[391978217,1761049846336,-142.45741826,0.0003046,30]
[391978218,1761049846354,-166.0,0.0003046,30]
[391978219,1761049846367,-166.0,0.0003046,30]
[391978221,1761049846380,-166.0,0.0003046,30]
[391978224,1761049846392,-166.0,0.0003046,30]
[391978225,1761049846406,-166.0,0.0003046,30]
[391978226,1761049846418,-5.87737298,0.0003046,30]
[391978227,1761049846439,-160.12262702,0.0003046,30]
[391978228,1761049846451,-166.0,0.0003046,30]
[391978229,1761049846464,-166.0,0.0003046,30]
[391978230,1761049846476,-1.16442197,0.0003046,30]
[391978231,1761049846492,-164.83557803,0.0003046,30]
[391978232,1761049846503,-447.00642353,0.00030463,30]
[391978415,1761050293862,150.11,0.00034254,30]
[391978416,1761050317064,150.11,0.00034265,30]
[391978417,1761050324642,155.7818026,0.00034265,30]
[391978418,1761050326157,150.12,0.00034265,30]
[391978419,1761050334729,150.13,0.00034265,30]
[391978450,1761050672308,262.38,0.00011641,2]
[391978451,1761050672466,262.38,0.00012254,2]
[391978452,1761050672654,262.38,0.00012867,2]
[391978453,1761050672887,262.38,0.00013479,2]
[391978459,1761050777011,150.18,0.00034265,30]
[391978461,1761050832050,205.32032025,0.00034265,30]
[391978462,1761050839274,250.0,0.00034265,30]
[391978463,1761050839958,250.0,0.00034265,30]
[391978464,1761050840651,250.0,0.00034265,30]
[391978465,1761050841310,250.0,0.00034265,30]
[391978466,1761050841973,250.0,0.00034265,30]
[391978467,1761050842629,250.0,0.00034265,30]
[391978468,1761050843406,250.0,0.00034265,30]
[391978469,1761050844084,250.0,0.00034265,30]
[391978470,1761050847765,300.0,0.00034265,30]
[391978471,1761050848426,311.1,0.00034265,30]
[391978472,1761050849090,311.1,0.00034265,30]
[391978481,1761050987449,2000.0,0.00034265,60]
[391978482,1761050987681,230.1944068,0.00034265,60]
[391978483,1761051003637,10000.0,0.00034265,120]
[391978488,1761051035702,-262.38,0.00014092,2]
[391978489,1761051035712,-262.38,0.00014705,2]
[391978490,1761051035726,-345.0,0.00014792,2]
[391978491,1761051035735,-185.65871773,0.00014855,2]
[391978492,1761051035811,-159.34128227,0.00014855,2]
[391978493,1761051035820,-139.19031768,0.00014857,2]
[391978494,1761051035867,-205.80968232,0.00014857,2]
[391978495,1761051035877,-345.0,0.00014875,2]
[391978496,1761051035886,-345.0,0.00014932,2]
[391978497,1761051035897,-345.0,0.00014959,2]
[391978498,1761051035907,-345.0,0.00015,2]
[391978499,1761051035917,-160.0,0.00015,2]
[391978500,1761051035926,-345.0,0.00015075,2]
[391978501,1761051035936,-345.0,0.00015184,2]
[391978502,1761051035947,-151.0,0.00015255,2]
[391978503,1761051035957,-262.38,0.00015317,2]
[391978504,1761051035966,-345.0,0.00015353,2]
[391978505,1761051035976,-345.0,0.00015387,2]
[391978506,1761051035987,-345.0,0.00015398,2]
[391978507,1761051035996,-345.0,0.00015403,2]
[391978508,1761051036006,-195.0,0.00015501,2]
[391978509,1761051036016,-250.0,0.00015501,2]
[391978510,1761051036026,-898.1440483,0.00015501,2]
[391978511,1761051036036,-195.0,0.00015501,2]
[391978513,1761051036045,-1531.70269604,0.00015501,2]
[391978515,1761051036054,-345.0,0.0001558,2]
[391978517,1761051036063,-345.0,0.00015652,2]
[391978519,1761051036072,-345.0,0.00015749,2]
[391978521,1761051036082,-345.0,0.00015759,2]
[391978522,1761051036092,-302.0,0.00015786,2]
[391978523,1761051036101,-298.0,0.00015787,2]
[391978524,1761051036110,-345.0,0.00015787,2]
[391978525,1761051036119,-345.0,0.00015866,2]
[391978526,1761051036129,-262.38,0.0001593,2]
[391978527,1761051036138,-300.0,0.0001593,2]
[391978528,1761051036147,-345.0,0.00016087,2]
[391978529,1761051036157,-345.0,0.00016134,2]
[391978530,1761051036166,-345.0,0.00016145,2]
[391978531,1761051036176,-345.0,0.00016158,2]
[391978533,1761051036186,-345.0,0.00016224,2]
[391978535,1761051036195,-345.0,0.00016264,2]
[391978537,1761051036204,-262.38,0.00016543,2]
[391978539,1761051036214,-510.0,0.00017045,2]
[391978540,1761051036223,-262.38,0.00017155,2]
[391978541,1761051036233,-262.38,0.00017768,2]
[391978542,1761051036243,-169.72,0.00018105,2]
[391978543,1761051036252,-866.0,0.0001824,2]
[391978544,1761051036262,-573.252,0.00018358,2]
[391978545,1761051036271,-3411.0,0.00018358,2]
[391978546,1761051036280,-850.0,0.00018358,2]
[391978547,1761051036289,-2055.298,0.00018358,2]
[391978548,1761051036298,-1590.0,0.00018358,2]
[391978549,1761051036308,-605.0,0.00018358,2]
[391978550,1761051036319,-1314.465,0.00018358,2]
[391978551,1761051036331,-902.0,0.00018358,2]
[391978552,1761051036342,-2548.0,0.00018358,2]
[391978553,1761051036351,-819.0,0.00018358,2]
[391978554,1761051036360,-1268.0,0.00018358,2]
[391978555,1761051036369,-257.0,0.00018358,2]
[391978556,1761051036379,-6534.0,0.00018358,2]
[391978557,1761051036388,-2591.0,0.00018358,2]
[391978558,1761051036398,-581.688,0.00018358,2]
[391978559,1761051036407,-262.38,0.00018381,2]
[391978560,1761051036416,-476.03091061,0.00018585,2]
[391978561,1761051036425,-262.38,0.00018993,2]
[391978562,1761051036434,-262.38,0.00019606,2]
[391978563,1761051036445,-262.38,0.00020219,2]
[391978564,1761051036456,-262.38,0.00020831,2]
[391978565,1761051036467,-9999.99,0.00020951,2]
[391978566,1761051036477,-1528.04,0.00020951,2]
[391978567,1761051036487,-753.44,0.00020951,2]
[391978568,1761051036496,-795.775,0.00021358,2]
[391978569,1761051036505,-850.0,0.00021358,2]
[391978570,1761051036515,-1589.0,0.00021358,2]
[391978571,1761051036524,-605.0,0.00021358,2]
[391978572,1761051036533,-1404.406,0.00021358,2]
[391978573,1761051036542,-2591.0,0.00021358,2]
[391978574,1761051036551,-557.0,0.00021358,2]
[391978575,1761051036561,-262.38,0.00021444,2]
[391978576,1761051036571,-8877.21,0.00021644,2]
[391978577,1761051036581,-150.0,0.00021688,2]
[391978578,1761051036591,-621.26009071,0.00021766,2]
[391978579,1761051036600,-1568.96,0.00021799,2]
[391978580,1761051036610,-262.38,0.00022057,2]
[391978581,1761051036619,-167.01,0.00022453,2]
[391978582,1761051036628,-182.88,0.00022611,2]
[391978583,1761051036637,-262.38,0.0002267,2]
[391978584,1761051036646,-200.0,0.0002322,2]
[391978585,1761051036656,-262.38,0.00023282,2]
[391978586,1761051036665,-116.96202889,0.00023742,2]
[391978587,1761051036719,-65.91797111,0.00023742,2]
[391978588,1761051036731,-496.33202789,0.00023836,2]
[391978589,1761051036743,-1.51797211,0.00023836,2]
[391978590,1761051036753,-737.915,0.00024358,2]
[391978591,1761051036763,-746.266,0.00024358,2]
[391978592,1761051036772,-219.51,0.00024658,2]
[391978593,1761051036781,-1001.96673272,0.00024869,2]
[391978594,1761051037785,-171.93466732,0.000149,2]
[391978595,1761051037796,-2091.179,0.00018358,2]
[391978596,1761051037806,-3237.82867288,0.00024869,2]
[391978597,1761051037815,-857.4808847,0.00024869,2]
[391978599,1761051037824,-749.2499713,0.00024869,2]
[391978601,1761051037834,-2504.8107065,0.00024869,2]
[391978602,1761051037843,-182.88,0.00024872,2]
[391978603,1761051037852,-3.6360973,0.00025336,2]
[391978604,1761051037863,-217.1528685,0.00025336,2]
[391978605,1761051037872,-2617.46,0.00025781,2]
[391978606,1761051037885,-182.88,0.00026003,2]
[391978607,1761051037895,-292.01,0.00026287,2]
[391978608,1761051037907,-243.66,0.00026392,2]
[391978609,1761051037916,-500.0,0.0002688,2]
[391978610,1761051037925,-1108.46,0.00027397,16]
[391978611,1761051037935,-300.0,0.00027397,2]
[391978612,1761051037944,-2504.8107065,0.00028014,2]
[391978613,1761051037953,-4239.7954056,0.00028072,2]
[391978614,1761051037962,-1139.752,0.00028089,18]
[391978615,1761051037971,-857.4808847,0.00028096,2]
[391978616,1761051037981,-749.2499713,0.00028112,2]
[391978617,1761051037989,-1631.70259,0.0002879,2]
[391978618,1761051037999,-152.0,0.00029179,3]
[391978619,1761051038008,-1131.19752378,0.00029516,2]
[391978620,1761051038017,-254.53,0.00029516,7]
[391978621,1761051038027,-500.0,0.00029516,7]
[391978622,1761051038037,-700.0,0.00029516,7]
[391978623,1761051038047,-500.0,0.00029516,7]
[391978625,1761051038056,-604.47822964,0.00029516,7]
[391978626,1761051038066,-500.0,0.00029516,7]
[391978629,1761051038075,-500.0,0.00029516,7]
[391978631,1761051038085,-583.75675892,0.00029516,7]
[391978633,1761051038094,-500.0,0.00029516,7]
[391978634,1761051038104,-500.0,0.00029516,7]
[391978636,1761051038114,-500.0,0.00029516,7]
[391978638,1761051038123,-500.0,0.00029516,7]
[391978640,1761051038134,-500.0,0.00029516,7]
[391978643,1761051038143,-500.0,0.00029516,7]
[391978644,1761051038153,-881.16822524,0.00029516,7]
[391978647,1761051038163,-500.0,0.00029516,7]
[391978648,1761051038173,-500.0,0.00029516,7]
[391978650,1761051038182,-500.0,0.00029516,7]
[391978652,1761051038192,-600.0,0.00029516,7]
[391978654,1761051038201,-500.0,0.00029516,7]
[391978656,1761051038210,-500.0,0.00029516,7]
[391978658,1761051038220,-706.45115207,0.00029516,7]
[391978660,1761051038230,-947.23687126,0.00029516,7]
[391978662,1761051038240,-513.69910083,0.00029516,7]
[391978664,1761051038250,-254.53,0.0002979,7]
[391978666,1761051038260,-1631.7026,0.0002979,2]
[391978668,1761051038269,-7431.88761583,0.0003,2]
[391978670,1761051038278,-254.53,0.00030064,7]
[391978672,1761051038288,-2000.0,0.000301,2]
[391978674,1761051038297,-1122.91778659,0.00030151,2]
[391978676,1761051038307,-166.66,0.00030184,30]
[391978679,1761051038317,-153.0,0.00030272,30]
[391978680,1761051038326,-153.0,0.00030272,30]
[391978682,1761051038337,-153.0,0.00030272,30]
[391978684,1761051038347,-153.0,0.00030272,30]
[391978686,1761051038357,-153.0,0.00030272,30]
[391978689,1761051038367,-153.0,0.00030272,30]
[391978690,1761051038376,-153.0,0.00030272,30]
[391978693,1761051038386,-153.0,0.00030272,30]
[391978695,1761051038395,-153.0,0.00030272,30]
[391978696,1761051038406,-153.0,0.00030272,30]
[391978698,1761051038416,-153.0,0.00030272,30]
[391978700,1761051038425,-153.0,0.00030272,30]
[391978702,1761051038435,-501.0,0.00030276,30]
[391978704,1761051038444,-501.0,0.00030276,30]
[391978706,1761051038453,-501.0,0.00030276,30]
[391978723,1761051038665,-501.0,0.00030276,30]
[391978724,1761051038674,-501.0,0.00030276,30]
[391978725,1761051038683,-501.0,0.00030276,30]
[391978726,1761051038692,-501.0,0.00030276,30]
[391978727,1761051038701,-501.0,0.00030276,30]
[391978728,1761051038711,-501.0,0.00030276,30]
[391978729,1761051038723,-501.0,0.00030276,30]
[391978731,1761051038732,-501.0,0.00030276,30]
[391978733,1761051038742,-501.0,0.00030276,30]
[391978735,1761051038754,-501.0,0.00030276,30]
[391978737,1761051038764,-501.0,0.00030276,30]
[391978739,1761051038773,-153.0,0.00030281,30]
[391978741,1761051038782,-153.0,0.00030281,30]
[391978743,1761051038793,-153.0,0.00030281,30]
[391978745,1761051038802,-153.0,0.00030281,30]
[391978747,1761051038811,-153.0,0.00030281,30]
[391978749,1761051038821,-153.0,0.00030281,30]
[391978751,1761051038830,-153.0,0.00030281,30]
[391978753,1761051038839,-153.0,0.00030281,30]
[391978754,1761051038849,-153.0,0.00030281,30]
[391978756,1761051038858,-153.0,0.00030281,30]
[391978759,1761051038868,-153.0,0.00030281,30]